lending/lending_fUSD_20250122
["ID","MTS","AMOUNT","RATE_DAILY","PERIOD"]
[350036307,1737586241846,-500.0,0.00021428,2]
[350036308,1737586241858,-692.91,0.00021428,2]
[350036309,1737586241868,-1012.49,0.00021428,2]
[350036310,1737586241879,-585.82,0.00021428,2]
[350036311,1737586241891,-722.34,0.00021428,2]
[350036312,1737586241902,-500.0,0.00021428,2]
[350036313,1737586241912,-500.0,0.00021428,2]
[350036314,1737586241921,-1138.07,0.00021428,2]
[350036315,1737586241930,-1022.84,0.00021428,2]
[350036316,1737586241942,-500.0,0.00021428,2]
[350036317,1737586241951,-500.0,0.00021428,2]
[350036318,1737586241961,-1686.91,0.00021428,2]
[350036319,1737586241970,-500.0,0.00021428,2]
[350036320,1737586241979,-500.0,0.00021428,2]
[350036321,1737586241989,-1552.47,0.00021428,2]
[350036322,1737586241998,-500.0,0.00021428,2]
[350036323,1737586242007,-500.0,0.00021428,2]
[350036324,1737586242017,-354.91405653,0.00021428,2]
[350036325,1737586242026,-500.0,0.00021428,2]
[350036326,1737586242035,-893.57,0.00021428,2]
[350036327,1737586242044,-500.0,0.00021428,2]
[350036328,1737586242054,-500.0,0.00021428,2]
[350036329,1737586242063,-500.0,0.00021428,2]
[350036330,1737586242072,-500.0,0.00021428,2]
[350036331,1737586242081,-386.52,0.00021429,2]
[350036332,1737586242091,-500.0,0.00021429,2]
[350036333,1737586242101,-623.14,0.00021429,2]
[350036334,1737586242110,-500.0,0.00021429,2]
[350036335,1737586242119,-500.0,0.00021429,2]
[350036336,1737586242129,-500.0,0.00021429,2]
[350036337,1737586242139,-500.0,0.00021429,2]
[350036338,1737586242148,-500.0,0.00021429,2]
[350036339,1737586242157,-500.0,0.00021429,2]
[350036340,1737586242167,-500.0,0.00021429,2]
[350036341,1737586242176,-500.0,0.00021429,2]
[350036342,1737586242185,-500.0,0.00021429,2]
[350036343,1737586242195,-151.0,0.00021429,2]
[350036344,1737586242204,-500.0,0.00021429,2]
[350036345,1737586242213,-500.0,0.00021429,2]
[350036346,1737586242222,-500.0,0.00021429,2]
[350036347,1737586242232,-572.47,0.00021429,2]
[350036348,1737586242241,-500.0,0.00021429,2]
[350036349,1737586242250,-500.0,0.00021429,2]
[350036350,1737586242259,-500.0,0.00021429,2]
[350036351,1737586242268,-500.0,0.00021429,2]
[350036352,1737586242278,-500.0,0.00021429,2]
[350036353,1737586242288,-186.396481,0.00021429,2]
[350036354,1737586242297,-500.0,0.00021429,2]
[350036355,1737586242307,-186.396481,0.00021429,2]
[350036356,1737586242316,-151.0,0.00021429,2]
[350036357,1737586242325,-500.0,0.00021429,2]
[350036358,1737586242334,-500.0,0.00021429,2]
[350036359,1737586242343,-500.0,0.00021429,2]
[350036360,1737586242352,-500.0,0.00021429,2]
[350036362,1737586242362,-500.0,0.00021429,2]
[350036363,1737586242370,-500.0,0.00021429,2]
[350036364,1737586242380,-500.0,0.00021429,2]
[350036365,1737586242389,-616.89,0.00021429,2]
[350036366,1737586242399,-543.11,0.00021429,2]
[350036367,1737586242408,-500.0,0.00021429,2]
[350036368,1737586242418,-529.33,0.00021429,2]
[350036369,1737586242427,-521.01,0.00021429,2]
[350036370,1737586242438,-750.94,0.00021429,2]
[350036371,1737586242447,-1705.82,0.00021429,2]
[350036372,1737586242457,-500.0,0.00021429,2]
[350036373,1737586242466,-500.0,0.00021429,2]
[350036374,1737586242475,-1180.52,0.00021429,2]
[350036375,1737586242484,-264.90768052,0.00021429,2]
[350036378,1737586242493,-500.0,0.00021429,2]
[350036380,1737586242502,-3098.86,0.00021429,2]
[350036381,1737586242511,-500.0,0.00021429,2]
[350036382,1737586242520,-2299.89,0.00021429,2]
[350036383,1737586242530,-500.0,0.00021429,2]
[350036384,1737586242540,-1018.67,0.00021429,2]
[350036385,1737586242550,-500.0,0.00021429,2]
[350036386,1737586242559,-500.0,0.00021429,2]
[350036387,1737586242569,-1226.03,0.00021429,2]
[350036388,1737586242579,-500.0,0.00021429,2]
[350036389,1737586242588,-849.41,0.00021429,2]
[350036390,1737586242598,-500.0,0.00021429,2]
[350036391,1737586242607,-2553.19,0.00021429,2]
[350036392,1737586242617,-500.0,0.00021429,2]
[350036393,1737586242626,-595.45,0.00021429,2]
[350036394,1737586242638,-500.0,0.00021429,2]
[350036395,1737586242648,-1412.58,0.00021429,2]
[350036396,1737586242657,-151.0,0.00021429,2]
[350036397,1737586242666,-500.0,0.00021429,2]
[350036398,1737586242676,-621.64,0.00021429,2]
[350036399,1737586242688,-500.0,0.00021429,2]
[350036400,1737586242697,-500.0,0.00021429,2]
[350036401,1737586242708,-743.31,0.00021429,2]
[350036402,1737586242717,-500.0,0.00021429,2]
[350036403,1737586242726,-199.654536,0.00021429,2]
[350036404,1737586242735,-948.07,0.00021429,2]
[350036405,1737586242744,-500.0,0.00021429,2]
[350036406,1737586242753,-500.0,0.00021429,2]
[350036407,1737586242762,-813.35,0.00021429,2]
[350036408,1737586242771,-585.231409,0.00021429,2]
[350036409,1737586242780,-500.0,0.00021429,2]
[350036410,1737586242790,-585.231409,0.00021429,2]
[350036411,1737586242799,-500.0,0.00021429,2]
[350036412,1737586242808,-500.0,0.00021429,2]
[350036413,1737586242817,-537.76,0.00021429,2]
[350036414,1737586242827,-500.0,0.00021429,2]
[350036415,1737586242836,-500.0,0.00021429,2]
[350036416,1737586242845,-560.95,0.00021429,2]
[350036417,1737586242854,-326.364747,0.00021429,2]
[350036418,1737586242863,-307.8433081,0.0002143,2]
[350036419,1737586242872,-182.599567,0.0002143,2]
[350036420,1737586242881,-182.599567,0.0002143,2]
[350036421,1737586242890,-151.0,0.0002143,2]
[350036422,1737586242899,-1332.48884104,0.00021461,2]
[350036423,1737586242908,-150.0,0.00021473,2]
[350036424,1737586242917,-6448.22737481,0.00021492,2]
[350036425,1737586242926,-953.26798788,0.00021496,2]
[350036426,1737586242935,-307.8433081,0.00021497,2]
[350036427,1737586242944,-621.08,0.000215,2]
[350036428,1737586242954,-150.94,0.000215,2]
[350036429,1737586242962,-151.0,0.000215,2]
[350036430,1737586242971,-1400.0,0.000215,7]
[350036431,1737586242980,-366.0,0.000215,2]
[350036432,1737586242989,-745.0,0.000215,2]
[350036433,1737586242999,-151.0,0.00021547,2]
[350036434,1737586243008,-151.0,0.00021547,2]
[350036435,1737586243017,-151.0,0.00021547,2]
[350036437,1737586243026,-1773.0,0.0002156,2]
[350036438,1737586243034,-150.52,0.00021562,2]
[350036440,1737586243043,-150.87,0.00021562,2]
[350036442,1737586243053,-307.8433081,0.00021564,2]
[350036444,1737586243062,-151.0,0.00021573,2]
[350036445,1737586243070,-618.7,0.00021573,2]
[350036447,1737586243079,-804.58,0.00021573,2]
[350036448,1737586243088,-719.73,0.00021573,2]
[350036449,1737586243098,-1796.63,0.00021573,2]
[350036451,1737586243107,-3158.39,0.00021573,2]
[350036453,1737586243116,-500.0,0.00021573,2]
[350036455,1737586243125,-779.08,0.00021573,2]
[350036457,1737586243134,-784.83,0.00021573,2]
[350036460,1737586243143,-500.0,0.00021573,2]
[350036462,1737586243153,-1490.16,0.00021573,2]
[350036464,1737586243162,-500.0,0.00021573,2]
[350036466,1737586243171,-655.79,0.00021573,2]
[350036468,1737586243181,-151.0,0.00021573,2]
[350036470,1737586243192,-801.7,0.00021573,2]
[350036472,1737586243202,-1061.01,0.00021573,2]
[350036474,1737586243211,-500.0,0.00021573,2]
[350036476,1737586243220,-1000.0,0.00021573,2]
[350036478,1737586243229,-910.06,0.00021573,2]
[350036480,1737586243238,-500.0,0.00021573,2]
[350036482,1737586243247,-1367.17,0.00021573,2]
[350036484,1737586243256,-1752.67,0.00021573,2]
[350036486,1737586243265,-6448.22737481,0.00021573,2]
[350036488,1737586243274,-151.0,0.00021592,2]
[350036490,1737586243283,-247.27,0.00021592,2]
[350036492,1737586243291,-249.75,0.00021592,2]
[350036494,1737586243301,-248.5,0.00021592,2]
[350036496,1737586243310,-953.26798788,0.00021597,2]
[350036498,1737586243319,-1400.0,0.000216,7]
[350036500,1737586243329,-248.51,0.00021609,2]
[350036502,1737586243340,-307.8433081,0.00021631,2]
[350036504,1737586243349,-525.82582656,0.00021639,2]
[350036506,1737586243359,-500.0,0.00021639,2]
[350036508,1737586243367,-151.0,0.00021639,2]
[350036510,1737586243376,-500.0,0.00021639,2]
[350036512,1737586243385,-500.0,0.00021639,2]
[350036514,1737586243394,-500.0,0.00021639,2]
[350036516,1737586243403,-500.0,0.00021639,2]
[350036518,1737586243412,-500.0,0.00021639,2]
[350036520,1737586243422,-500.0,0.00021639,2]
[350036522,1737586243431,-500.0,0.00021639,2]
[350036524,1737586243442,-500.0,0.00021639,2]
[350036526,1737586243451,-500.0,0.00021639,2]
[350036528,1737586243459,-500.0,0.00021639,2]
[350036530,1737586243469,-524.46,0.00021639,2]
[350036532,1737586243477,-279.84,0.00021639,2]
[350036534,1737586243486,-500.0,0.00021639,2]
[350036536,1737586243495,-515.55760062,0.00021639,2]
[350036538,1737586243504,-500.0,0.00021639,2]
[350036540,1737586243514,-500.0,0.00021639,2]
[350036542,1737586243523,-500.0,0.00021639,2]
[350036544,1737586243532,-216.94352879,0.0002165,3]
[350036546,1737586243541,-151.0,0.00021655,2]
[350036548,1737586243551,-186.396481,0.00021655,2]
[350036550,1737586243560,-186.396481,0.00021655,2]
[350036552,1737586243569,-151.0,0.00021655,2]
[350036553,1737586243578,-6448.22737481,0.00021655,2]
[350036555,1737586243587,-467.681519,0.00021669,2]
[350036557,1737586243596,-501.09,0.00021669,2]
[350036559,1737586243605,-1006.18,0.00021669,2]
[350036561,1737586243615,-760.02,0.00021669,2]
[350036563,1737586243624,-584.938738,0.00021669,2]
[350036565,1737586243636,-500.0,0.00021669,2]
[350036567,1737586243644,-500.0,0.00021669,2]
[350036569,1737586243654,-500.0,0.00021669,2]
[350036571,1737586243663,-500.0,0.00021669,2]
[350036573,1737586243672,-1149.55,0.00021669,2]
[350036575,1737586243681,-913.86,0.00021669,2]
[350036577,1737586243692,-772.34,0.00021669,2]
[350036579,1737586243701,-606.89,0.00021669,2]
[350036581,1737586243712,-1225.38,0.00021669,2]
[350036583,1737586243721,-1603.89,0.00021669,2]
[350036585,1737586243730,-1217.1,0.00021669,2]
[350036587,1737586243739,-519.4,0.00021669,2]
[350036589,1737586243748,-500.0,0.00021669,2]
[350036591,1737586243757,-1236.27,0.00021669,2]
[350036593,1737586243766,-500.0,0.00021669,2]
[350036595,1737586243775,-648.46,0.00021669,2]
[350036597,1737586243784,-500.0,0.00021669,2]
[350036599,1737586243794,-879.77,0.00021669,2]
[350036601,1737586243804,-962.37,0.00021669,2]
[350036603,1737586243813,-500.0,0.00021669,2]
[350036605,1737586243822,-1452.25,0.00021669,2]
[350036607,1737586243831,-500.0,0.00021669,2]
[350036609,1737586243840,-838.79,0.00021669,2]
[350036611,1737586243849,-953.26798788,0.00021698,2]
[350036613,1737586243859,-307.8433081,0.00021698,2]
[350036615,1737586243868,-1400.0,0.000217,7]
[350036617,1737586243877,-2000.0,0.000217,2]
[350036619,1737586243886,-501.8,0.00021702,2]
[350036621,1737586243896,-500.0,0.00021702,2]
[350036623,1737586243905,-845.69,0.00021702,2]
[350036625,1737586243915,-500.0,0.00021702,2]
[350036627,1737586243924,-692.91,0.00021702,2]
[350036629,1737586243935,-1012.49,0.00021702,2]
[350036631,1737586243945,-585.82,0.00021702,2]
[350036633,1737586243953,-722.34,0.00021702,2]
[350036635,1737586243962,-500.0,0.00021702,2]
[350036637,1737586243972,-500.0,0.00021702,2]
[350036639,1737586243981,-1138.07,0.00021702,2]
[350036641,1737586243990,-1022.84,0.00021702,2]
[350036643,1737586243999,-500.0,0.00021702,2]
[350036645,1737586244008,-500.0,0.00021702,2]
[350036647,1737586244017,-1686.91,0.00021702,2]
[350036649,1737586244026,-500.0,0.00021702,2]
[350036651,1737586244035,-1552.47,0.00021702,2]
[350036653,1737586244045,-500.0,0.00021702,2]
[350036655,1737586244054,-500.0,0.00021702,2]
[350036657,1737586244063,-500.0,0.00021702,2]
[350036659,1737586244073,-893.57,0.00021702,2]
[350036661,1737586244082,-500.0,0.00021702,2]
[350036663,1737586244091,-500.0,0.00021702,2]
[350036665,1737586244102,-500.0,0.00021702,2]
[350036667,1737586244111,-500.0,0.00021703,2]
[350036669,1737586244120,-623.14,0.00021703,2]
[350036671,1737586244129,-500.0,0.00021703,2]
[350036673,1737586244139,-500.0,0.00021703,2]
[350036675,1737586244148,-500.0,0.00021703,2]
[350036677,1737586244158,-500.0,0.00021703,2]
[350036679,1737586244167,-500.0,0.00021703,2]
[350036681,1737586244176,-500.0,0.00021703,2]
[350036683,1737586244187,-500.0,0.00021703,2]
[350036685,1737586244196,-269.7379071,0.00021703,2]
[350036687,1737586244205,-500.0,0.00021703,2]
[350036689,1737586244215,-500.0,0.00021703,2]
[350036691,1737586244224,-500.0,0.00021703,2]
[350036693,1737586244233,-367.11,0.00021703,2]
[350036695,1737586244242,-572.47,0.00021703,2]
[350036697,1737586244251,-383.09750557,0.00021703,2]
[350036699,1737586244260,-500.0,0.00021703,2]
[350036701,1737586244269,-500.0,0.00021703,2]
[350036703,1737586244278,-500.0,0.00021703,2]
[350036705,1737586244287,-500.0,0.00021703,2]
[350036707,1737586244296,-500.0,0.00021703,2]
[350036709,1737586244305,-500.0,0.00021703,2]
[350036711,1737586244315,-500.0,0.00021703,2]
[350036713,1737586244323,-500.0,0.00021703,2]
[350036715,1737586244332,-500.0,0.00021703,2]
[350036717,1737586244341,-500.0,0.00021703,2]
[350036719,1737586244350,-500.0,0.00021703,2]
[350036721,1737586244359,-500.0,0.00021703,2]
[350036723,1737586244368,-616.89,0.00021703,2]
[350036725,1737586244377,-543.11,0.00021703,2]
[350036727,1737586244386,-182.599567,0.00021703,2]
[350036729,1737586244395,-182.599567,0.00021703,2]
[350036730,1737586244404,-500.0,0.00021703,2]
[350036732,1737586244414,-529.33,0.00021703,2]
[350036734,1737586244423,-521.01,0.00021703,2]
[350036736,1737586244432,-750.94,0.00021703,2]
[350036738,1737586244442,-1705.82,0.00021703,2]
[350036740,1737586244452,-262.42,0.00021703,2]
[350036742,1737586244461,-500.0,0.00021703,2]
[350036744,1737586244470,-1180.52,0.00021703,2]
[350036746,1737586244479,-500.0,0.00021703,2]
[350036748,1737586244488,-3098.86,0.00021703,2]
[350036750,1737586244497,-500.0,0.00021703,2]
[350036752,1737586244506,-2299.89,0.00021703,2]
[350036754,1737586244516,-500.0,0.00021703,2]
[350036756,1737586244525,-1018.67,0.00021703,2]
[350036758,1737586244534,-500.0,0.00021703,2]
[350036760,1737586244543,-500.0,0.00021703,2]
[350036762,1737586244552,-1226.03,0.00021703,2]
[350036764,1737586244561,-500.0,0.00021703,2]
[350036766,1737586244570,-849.41,0.00021703,2]
[350036768,1737586244579,-500.0,0.00021703,2]
[350036770,1737586244588,-2553.19,0.00021703,2]
[350036772,1737586244597,-500.0,0.00021703,2]
[350036774,1737586244606,-595.45,0.00021703,2]
[350036776,1737586244615,-500.0,0.00021703,2]
[350036778,1737586244624,-1412.58,0.00021703,2]
[350036780,1737586244636,-151.0,0.00021703,2]
[350036782,1737586244646,-500.0,0.00021703,2]
[350036784,1737586244655,-621.64,0.00021703,2]
[350036786,1737586244664,-500.0,0.00021703,2]
[350036788,1737586244674,-500.0,0.00021703,2]
[350036790,1737586244685,-743.31,0.00021703,2]
[350036791,1737586244694,-500.0,0.00021703,2]
[350036792,1737586244703,-948.07,0.00021703,2]
[350036793,1737586244713,-500.0,0.00021703,2]
[350036794,1737586244723,-813.35,0.00021703,2]
[350036795,1737586244732,-585.231409,0.00021703,2]
[350036796,1737586244741,-500.0,0.00021703,2]
[350036797,1737586244750,-585.231409,0.00021703,2]
[350036798,1737586244758,-500.0,0.00021703,2]
[350036799,1737586244767,-500.0,0.00021703,2]
[350036800,1737586244776,-500.0,0.00021703,2]
[350036801,1737586244785,-500.0,0.00021703,2]
[350036803,1737586244795,-560.95,0.00021703,2]
[350036805,1737586244804,-326.364747,0.00021703,2]
[350036807,1737586244813,-151.0,0.00021704,2]
[350036809,1737586244822,-151.0,0.00021704,2]
[350036811,1737586244831,-151.0,0.00021704,2]
[350036813,1737586244840,-151.0,0.00021704,2]
[350036815,1737586244849,-151.0,0.00021704,2]
[350036817,1737586244858,-151.0,0.00021704,2]
[350036819,1737586244867,-152.19,0.00021709,2]
[350036821,1737586244876,-2000.0,0.0002171,2]
[350036823,1737586244885,-3948.388498,0.0002172,2]
[350036825,1737586244896,-1597.0,0.00021724,2]
[350036827,1737586244905,-151.0,0.00021724,2]
[350036829,1737586244914,-211.0,0.0002173,2]
[350036831,1737586244923,-6448.22737481,0.00021737,2]
[350036833,1737586244932,-150.0,0.00021758,2]
[350036835,1737586244943,-151.0,0.00021759,2]
[350036837,1737586244951,-897.61,0.0002176,2]
[350036839,1737586244960,-307.8433081,0.00021766,2]
[350036841,1737586244970,-1000.0,0.00021767,2]
[350036843,1737586244979,-150.0,0.00021768,2]
[350036845,1737586244988,-1000.0,0.0002177,2]
[350036847,1737586244997,-1773.0,0.0002178,2]
[350036849,1737586245006,-150.0,0.00021797,2]
[350036851,1737586245015,-953.26798788,0.00021799,2]
[350036867,1737586245160,-1700.0,0.000218,7]
[350036869,1737586245170,-13224.22327818,0.000218,2]
[350036871,1737586245180,-7242.45069091,0.000218,2]
[350036873,1737586245191,-151.0,0.000218,2]
[350036875,1737586245200,-151.0,0.000218,2]
[350036877,1737586245210,-151.0,0.000218,2]
[350036879,1737586245219,-247.56,0.00021817,2]
[350036881,1737586245229,-245.29,0.00021817,2]
[350036883,1737586245238,-6448.22737481,0.00021818,2]
[350036885,1737586245247,-500.0,0.00021823,2]
[350036887,1737586245256,-150.0,0.00021827,2]
[350036889,1737586245265,-307.8433081,0.00021833,2]
[350036891,1737586245274,-150.0,0.00021839,2]
[350036893,1737586245284,-150.0,0.0002184,2]
[350036895,1737586245293,-150.0,0.00021845,2]
[350036897,1737586245302,-618.7,0.00021847,2]
[350036899,1737586245312,-804.58,0.00021847,2]
[350036901,1737586245321,-719.73,0.00021847,2]
[350036903,1737586245330,-1796.63,0.00021847,2]
[350036905,1737586245339,-3158.39,0.00021847,2]
[350036907,1737586245349,-500.0,0.00021847,2]
[350036910,1737586245362,-779.08,0.00021847,2]
[350036912,1737586245371,-784.83,0.00021847,2]
[350036914,1737586245380,-500.0,0.00021847,2]
[350036916,1737586245389,-1490.16,0.00021847,2]
[350036918,1737586245399,-500.0,0.00021847,2]
[350036920,1737586245408,-655.79,0.00021847,2]
[350036922,1737586245417,-801.7,0.00021847,2]
[350036925,1737586245427,-1061.01,0.00021847,2]
[350036926,1737586245438,-500.0,0.00021847,2]
[350036928,1737586245448,-1000.0,0.00021847,2]
[350036930,1737586245457,-910.06,0.00021847,2]
[350036933,1737586245466,-500.0,0.00021847,2]
[350036935,1737586245476,-1367.17,0.00021847,2]
[350036937,1737586245485,-1752.67,0.00021847,2]
[350036939,1737586245497,-150.0,0.00021849,2]
[350036941,1737586245507,-151.24758829,0.00021863,2]
[350036943,1737586245516,-1000.0,0.00021864,2]
[350036945,1737586245526,-150.0,0.00021873,2]
[350036947,1737586245535,-5800.0,0.00021878,2]
[350036949,1737586245544,-252.74,0.00021884,2]
[350036951,1737586245553,-186.396481,0.00021885,2]
[350036954,1737586245563,-186.396481,0.00021885,2]
[350036957,1737586245572,-151.0,0.00021885,2]
[350036960,1737586245582,-2110.0,0.00021885,2]
[350036962,1737586245592,-5800.0,0.00021887,2]
[350036964,1737586245601,-151.0,0.00021887,2]
[350036966,1737586245610,-2000.0,0.0002189,2]
[350036968,1737586245619,-5800.0,0.00021895,2]
[350036970,1737586245630,-182.599567,0.00021895,2]
[350036972,1737586245645,-182.599567,0.00021895,2]
[350036974,1737586245654,-151.0,0.00021895,2]
[350036976,1737586245663,-779.0113834,0.000219,2]
[350036978,1737586245672,-1552.86744351,0.000219,2]
[350036980,1737586245683,-6448.22737481,0.000219,2]
[350036982,1737586245693,-216.94352879,0.000219,3]
[350036984,1737586245702,-151.14229281,0.000219,2]
[350036986,1737586245711,-151.14229279,0.000219,2]
[350036988,1737586245720,-234.67369686,0.000219,2]
[350036990,1737586245731,-151.14229279,0.000219,2]
[350036992,1737586245740,-585.231409,0.000219,2]
[350036994,1737586245750,-585.231409,0.000219,2]
[350036996,1737586245759,-307.8433081,0.000219,2]
[350036998,1737586245768,-1595.3833992,0.000219,2]
[350037000,1737586245778,-690.38916156,0.000219,2]
[350037002,1737586245787,-150.0,0.00021901,2]
[350037004,1737586245797,-150.012306,0.00021908,4]
[350037006,1737586245806,-152.797401,0.00021912,2]
[350037008,1737586245815,-151.0,0.00021913,2]
[350037010,1737586245824,-352.44,0.00021913,2]
[350037012,1737586245834,-151.0,0.00021913,2]
[350037014,1737586245843,-500.0,0.00021913,2]
[350037016,1737586245852,-500.0,0.00021913,2]
[350037018,1737586245861,-500.0,0.00021913,2]
[350037020,1737586245870,-500.0,0.00021913,2]
[350037022,1737586245879,-500.0,0.00021913,2]
[350037024,1737586245890,-500.0,0.00021913,2]
[350037026,1737586245899,-261.567389,0.00021913,2]
[350037028,1737586245909,-500.0,0.00021913,2]
[350037029,1737586245918,-500.0,0.00021913,2]
[350037032,1737586245929,-500.0,0.00021913,2]
[350037033,1737586245939,-500.0,0.00021913,2]
[350037035,1737586245948,-524.46,0.00021913,2]
[350037038,1737586245958,-500.0,0.00021913,2]
[350037040,1737586245967,-500.0,0.00021913,2]
[350037041,1737586245976,-500.0,0.00021913,2]
[350037043,1737586245985,-500.0,0.00021913,2]
[350037045,1737586245994,-150.0,0.00021916,2]
[350037047,1737586246003,-151.0,0.00021917,2]
[350037049,1737586246012,-500.0,0.00021917,2]
[350037052,1737586246023,-500.0,0.00021917,2]
[350037053,1737586246032,-500.0,0.00021917,2]
[350037056,1737586246042,-500.0,0.00021917,2]
[350037058,1737586246051,-500.0,0.00021917,2]
[350037059,1737586246060,-500.0,0.00021917,2]
[350037061,1737586246070,-500.0,0.00021917,2]
[350037063,1737586246078,-500.0,0.00021917,2]
[350037065,1737586246088,-150.0,0.00021918,2]
[350037067,1737586246099,-150.012306,0.00021918,6]
[350037070,1737586246108,-150.012306,0.00021918,5]
[350037072,1737586246117,-150.012306,0.00021918,4]
[350037073,1737586246127,-151.970098,0.00021918,7]
[350037075,1737586246136,-150.012306,0.00021928,6]
[350037077,1737586246146,-150.012306,0.00021928,5]
[350037079,1737586246155,-150.012306,0.00021938,6]
[350037082,1737586246165,-379.56985548,0.00021943,2]
[350037084,1737586246174,-467.681519,0.00021943,2]
[350037085,1737586246183,-501.09,0.00021943,2]
[350037087,1737586246193,-1006.18,0.00021943,2]
[350037089,1737586246202,-760.02,0.00021943,2]
[350037092,1737586246212,-584.938738,0.00021943,2]
[350037094,1737586246221,-500.0,0.00021943,2]
[350037096,1737586246230,-500.0,0.00021943,2]
[350037097,1737586246239,-500.0,0.00021943,2]
[350037100,1737586246249,-500.0,0.00021943,2]
[350037101,1737586246258,-1149.55,0.00021943,2]
[350037103,1737586246267,-913.86,0.00021943,2]
[350037105,1737586246276,-772.34,0.00021943,2]
[350037107,1737586246286,-606.89,0.00021943,2]
[350037110,1737586246295,-1225.38,0.00021943,2]
[350037112,1737586246304,-1603.89,0.00021943,2]
[350037113,1737586246313,-1217.1,0.00021943,2]
[350037115,1737586246322,-519.4,0.00021943,2]
[350037117,1737586246331,-500.0,0.00021943,2]
[350037119,1737586246340,-1236.27,0.00021943,2]
[350037121,1737586246349,-500.0,0.00021943,2]
[350037123,1737586246359,-648.46,0.00021943,2]
[350037125,1737586246368,-500.0,0.00021943,2]
[350037127,1737586246377,-879.77,0.00021943,2]
[350037129,1737586246386,-962.37,0.00021943,2]
[350037131,1737586246395,-500.0,0.00021943,2]
[350037133,1737586246404,-1452.25,0.00021943,2]
[350037135,1737586246414,-500.0,0.00021943,2]
[350037137,1737586246423,-150.012306,0.00021948,4]
[350037139,1737586246433,-150.012306,0.00021948,5]
[350037142,1737586246445,-150.012306,0.00021948,6]
[350037144,1737586246454,-4000.0,0.00021948,4]
[350037146,1737586246464,-150.0,0.0002195,2]
[350037148,1737586246474,-150.012306,0.00021958,5]
[350037150,1737586246483,-150.0,0.00021965,2]
[350037152,1737586246493,-150.012306,0.00021968,4]
[350037154,1737586246502,-150.0,0.00021972,2]
[350037156,1737586246510,-371179.75716077,0.00021972,2]
[350037158,1737586246519,-17638.0,0.00021973,2]
[350037159,1737586246529,-500.0,0.00021973,2]
[350037162,1737586246538,-317.47602052,0.00021973,4]
[350037163,1737586246547,-150.0,0.00021973,4]
[350037165,1737586246556,-163.0137791,0.00021973,4]
[350037167,1737586246566,-151.12745304,0.00021973,4]
[350037169,1737586246575,-150.0,0.00021973,4]
[350037171,1737586246584,-190.82856,0.00021973,7]
[350037173,1737586246593,-200.36381393,0.00021973,3]
[350037175,1737586246602,-501.8,0.00021976,2]
[350037177,1737586246611,-500.0,0.00021976,2]
[350037179,1737586246620,-845.69,0.00021976,2]
[350037181,1737586246630,-500.0,0.00021976,2]
[350037183,1737586246644,-692.91,0.00021976,2]
[350037185,1737586246653,-1012.49,0.00021976,2]
[350037187,1737586246662,-585.82,0.00021976,2]